Department Family,Entity,Date Paid,Expense Type,Expense Area,Supplier,Transaction Number,Amount (�),Supplier VAT Registration Number
BEIS,Met Office,2021-09-01,06 ACCOMMODATION,CHIEF FINANCIAL OFFICER,ABOVE THE REST COMMERCIAL CLEANING LTD,459532,565,166969348
BEIS,Met Office,2021-09-13,06 ACCOMMODATION,CHIEF FINANCIAL OFFICER,ABOVE THE REST COMMERCIAL CLEANING LTD,459887,565,166969348
BEIS,Met Office,2021-09-09,06 ACCOMMODATION,CHIEF FINANCIAL OFFICER,ACTIVE PEST MANAGEMENT,459856,86.1,791419116
BEIS,Met Office,2021-09-08,11 SERVICES,CHIEF FINANCIAL OFFICER,ADAM PHONES LTD,459770,176.7,538877093
BEIS,Met Office,2021-09-03,11 SERVICES,CHIEF FINANCIAL OFFICER,ALLSTAR BUSINESS SOLUTIONS LTD,459678,2066.2,747880191
BEIS,Met Office,2021-09-20,11 SERVICES,CHIEF FINANCIAL OFFICER,ALLSTAR BUSINESS SOLUTIONS LTD,460137,2150.26,747880191
BEIS,Met Office,2021-09-13,11 SERVICES,CHIEF FINANCIAL OFFICER,ANVIL MOBILE LIMITED,460011,34.85,981686175
BEIS,Met Office,2021-09-13,11 SERVICES,CHIEF FINANCIAL OFFICER,ANVIL MOBILE LIMITED,460011,43.6,981686175
BEIS,Met Office,2021-09-13,11 SERVICES,CHIEF FINANCIAL OFFICER,ANVIL MOBILE LIMITED,460011,82.6,981686175
BEIS,Met Office,2021-09-13,11 SERVICES,CHIEF FINANCIAL OFFICER,ANVIL MOBILE LIMITED,460011,98.6,981686175
BEIS,Met Office,2021-09-13,11 SERVICES,CHIEF FINANCIAL OFFICER,ANVIL MOBILE LIMITED,460011,111.3,981686175
BEIS,Met Office,2021-09-06,11 SERVICES,CHIEF FINANCIAL OFFICER,APPLE CENTRAL TAXIS,459773,44,449238720
BEIS,Met Office,2021-09-30,06 ACCOMMODATION,CHIEF FINANCIAL OFFICER,Arup,460403,7482.71,524461265
BEIS,Met Office,2021-09-29,13 MISCELLANEOUS,CHIEF FINANCIAL OFFICER,BANNER GROUP LIMITED,460443,3.32,GB391085740
BEIS,Met Office,2021-09-29,13 MISCELLANEOUS,CHIEF FINANCIAL OFFICER,BANNER GROUP LIMITED,460442,11.28,GB391085740
BEIS,Met Office,2021-09-09,06 ACCOMMODATION,CHIEF FINANCIAL OFFICER,BANNER GROUP LIMITED,459766,21.81,GB391085740
BEIS,Met Office,2021-09-28,06 ACCOMMODATION,CHIEF FINANCIAL OFFICER,Belfast International Airport Ltd,460391,243.75,617777601
BEIS,Met Office,2021-09-13,06 ACCOMMODATION,CHIEF FINANCIAL OFFICER,BIDVEST NOONAN UK LTD,459988,395.68,GB847176988
BEIS,Met Office,2021-09-13,06 ACCOMMODATION,CHIEF FINANCIAL OFFICER,BIDVEST NOONAN UK LTD,459987,890.6,GB847176988
BEIS,Met Office,2021-09-29,06 ACCOMMODATION,CHIEF FINANCIAL OFFICER,Biffa Waste Services Ltd,460421,8.9,537911627
BEIS,Met Office,2021-09-29,06 ACCOMMODATION,CHIEF FINANCIAL OFFICER,Biffa Waste Services Ltd,460422,206.66,537911627
BEIS,Met Office,2021-09-01,06 ACCOMMODATION,CHIEF FINANCIAL OFFICER,British Gas Trading Ltd,459527,31.39,684966762
BEIS,Met Office,2021-09-06,11 SERVICES,CHIEF FINANCIAL OFFICER,British Red Cross Society,459160,1055,706926227
BEIS,Met Office,2021-09-06,11 SERVICES,CHIEF FINANCIAL OFFICER,British Red Cross Society,459163,1412,706926227
BEIS,Met Office,2021-09-09,11 SERVICES,CHIEF FINANCIAL OFFICER,BT CONFERENCING,459888,89.06,245719348
BEIS,Met Office,2021-09-20,11 SERVICES,CHIEF FINANCIAL OFFICER,BT GLOBAL SERVICES,460130,11214.12,245719348
BEIS,Met Office,2021-09-01,11 SERVICES,CHIEF FINANCIAL OFFICER,BT GLOBAL SERVICES,459530,14229.94,245719348
BEIS,Met Office,2021-09-01,11 SERVICES,CHIEF FINANCIAL OFFICER,BT plc,459477,876.22,245719348
BEIS,Met Office,2021-09-29,11 SERVICES,CHIEF FINANCIAL OFFICER,BT plc,460408,876.22,245719348
BEIS,Met Office,2021-09-01,11 SERVICES,CHIEF FINANCIAL OFFICER,BT plc,459534,9610.48,245719348
BEIS,Met Office,2021-09-01,11 SERVICES,CHIEF FINANCIAL OFFICER,BT plc,459512,11941.9,245719348
BEIS,Met Office,2021-09-09,06 ACCOMMODATION,CHIEF FINANCIAL OFFICER,BUSINESS SUPPORT CENTRE LTD,459845,36.52,927365208
BEIS,Met Office,2021-09-16,06 ACCOMMODATION,CHIEF FINANCIAL OFFICER,BUSINESS SUPPORT CENTRE LTD,460008,1027.28,927365208
BEIS,Met Office,2021-09-01,13 MISCELLANEOUS,CHIEF FINANCIAL OFFICER,CANON UK LTD,459571,5.94,523797128
BEIS,Met Office,2021-09-13,13 MISCELLANEOUS,CHIEF FINANCIAL OFFICER,CANON UK LTD,459972,7.64,523797128
BEIS,Met Office,2021-09-13,13 MISCELLANEOUS,CHIEF FINANCIAL OFFICER,CANON UK LTD,459972,15.52,523797128
BEIS,Met Office,2021-09-13,13 MISCELLANEOUS,CHIEF FINANCIAL OFFICER,CANON UK LTD,459972,23.16,523797128
BEIS,Met Office,2021-09-13,13 MISCELLANEOUS,CHIEF FINANCIAL OFFICER,CANON UK LTD,459972,26.92,523797128
BEIS,Met Office,2021-09-13,13 MISCELLANEOUS,CHIEF FINANCIAL OFFICER,CANON UK LTD,459972,62.82,523797128
BEIS,Met Office,2021-09-13,13 MISCELLANEOUS,CHIEF FINANCIAL OFFICER,CANON UK LTD,459972,89.74,523797128
BEIS,Met Office,2021-09-13,13 MISCELLANEOUS,CHIEF FINANCIAL OFFICER,CANON UK LTD,459972,89.74,523797128
BEIS,Met Office,2021-09-13,13 MISCELLANEOUS,CHIEF FINANCIAL OFFICER,CANON UK LTD,459972,89.74,523797128
BEIS,Met Office,2021-09-13,13 MISCELLANEOUS,CHIEF FINANCIAL OFFICER,CANON UK LTD,459972,2741.42,523797128
BEIS,Met Office,2021-09-13,13 MISCELLANEOUS,CHIEF FINANCIAL OFFICER,CANON UK LTD,459970,11812.72,523797128
BEIS,Met Office,2021-09-06,13 MISCELLANEOUS,CHIEF FINANCIAL OFFICER,CARDIFF EXECUTIVE CENTRE LTD,459673,7,864497378
BEIS,Met Office,2021-09-06,06 ACCOMMODATION,CHIEF FINANCIAL OFFICER,CARDIFF EXECUTIVE CENTRE LTD,459672,2470,864497378
BEIS,Met Office,2021-09-16,06 ACCOMMODATION,CHIEF FINANCIAL OFFICER,CARDIFF EXECUTIVE CENTRE LTD,459995,2470,864497378
BEIS,Met Office,2021-09-13,13 MISCELLANEOUS,CHIEF FINANCIAL OFFICER,CBRE MANAGED SERVICES LTD,459919,-49.99,853936883
BEIS,Met Office,2021-09-09,06 ACCOMMODATION,CHIEF FINANCIAL OFFICER,CBRE MANAGED SERVICES LTD,459749,1178.6,853936883
BEIS,Met Office,2021-09-13,06 ACCOMMODATION,CHIEF FINANCIAL OFFICER,CBRE MANAGED SERVICES LTD,459750,11593.12,853936883
BEIS,Met Office,2021-09-16,06 ACCOMMODATION,CHIEF FINANCIAL OFFICER,CBRE MANAGED SERVICES LTD,460093,16188.96,853936883
BEIS,Met Office,2021-09-06,06 ACCOMMODATION,CHIEF FINANCIAL OFFICER,CBRE MANAGED SERVICES LTD,459602,22065.43,853936883
BEIS,Met Office,2021-09-06,06 ACCOMMODATION,CHIEF FINANCIAL OFFICER,CBRE MANAGED SERVICES LTD,459603,26158.85,853936883
BEIS,Met Office,2021-09-20,06 ACCOMMODATION,CHIEF FINANCIAL OFFICER,CBRE MANAGED SERVICES LTD,459754,26493.99,853936883
BEIS,Met Office,2021-09-16,06 ACCOMMODATION,CHIEF FINANCIAL OFFICER,CBRE MANAGED SERVICES LTD,460081,27079.82,853936883
BEIS,Met Office,2021-09-03,06 ACCOMMODATION,CHIEF FINANCIAL OFFICER,CBRE MANAGED SERVICES LTD,459609,141920.1,853936883
BEIS,Met Office,2021-09-03,06 ACCOMMODATION,CHIEF FINANCIAL OFFICER,CBRE MANAGED SERVICES LTD,459610,141920.1,853936883
BEIS,Met Office,2021-09-27,08 SOFTWARE LICENCES,CHIEF FINANCIAL OFFICER,CEMAR,460375,90,915042161
BEIS,Met Office,2021-09-03,06 ACCOMMODATION,CHIEF FINANCIAL OFFICER,Cheshire East Borough Council,459584,137.23,N/A
BEIS,Met Office,2021-09-28,06 ACCOMMODATION,CHIEF FINANCIAL OFFICER,CORNWALL FLYING CLUB LTD,460398,20,313291390
BEIS,Met Office,2021-09-09,06 ACCOMMODATION,CHIEF FINANCIAL OFFICER,CORONA ENERGY LTD,459837,447.29,577704800
BEIS,Met Office,2021-09-09,FIXTURE & FITTINGS,CHIEF FINANCIAL OFFICER,CORPORATE MOVES C/O SPACE SOLUTIONS,459854,75,907839882
BEIS,Met Office,2021-09-09,FIXTURE & FITTINGS,CHIEF FINANCIAL OFFICER,CORPORATE MOVES C/O SPACE SOLUTIONS,459854,560,907839882
BEIS,Met Office,2021-09-09,FIXTURE & FITTINGS,CHIEF FINANCIAL OFFICER,CORPORATE MOVES C/O SPACE SOLUTIONS,459854,650,907839882
BEIS,Met Office,2021-09-13,06 ACCOMMODATION,CHIEF FINANCIAL OFFICER,D&G OFFICE SERVICES LTD,459969,276.25,272997547
BEIS,Met Office,2021-09-13,06 ACCOMMODATION,CHIEF FINANCIAL OFFICER,D&G OFFICE SERVICES LTD,459969,276.25,272997547
BEIS,Met Office,2021-09-29,11 SERVICES,CHIEF FINANCIAL OFFICER,DBS FINANCE RECEIPTS CTS,23000,167.05,888805068
BEIS,Met Office,2021-09-28,11 SERVICES,CHIEF FINANCIAL OFFICER,DIGITAL COMMUNICATIONS SYSTEMS LIMITED,460372,3666.01,GB 556 1971 19
BEIS,Met Office,2021-09-08,11 SERVICES,CHIEF FINANCIAL OFFICER,DIGITAL COMMUNICATIONS SYSTEMS LIMITED,459748,3865.18,GB 556 1971 19
BEIS,Met Office,2021-09-06,13 MISCELLANEOUS,CHIEF FINANCIAL OFFICER,EAST ANGLIAN WATER COOLER CO,459663,32.1,676668178
BEIS,Met Office,2021-09-06,13 MISCELLANEOUS,CHIEF FINANCIAL OFFICER,EDEN SPRINGS UK LTD,459598,341.03,232160411
BEIS,Met Office,2021-09-09,06 ACCOMMODATION,CHIEF FINANCIAL OFFICER,EDF ENERGY CUSTOMERS PLC,459820,-103598.65,523041202
BEIS,Met Office,2021-09-23,06 ACCOMMODATION,CHIEF FINANCIAL OFFICER,EDF ENERGY CUSTOMERS PLC,460113,103895.39,523041202
BEIS,Met Office,2021-09-09,06 ACCOMMODATION,CHIEF FINANCIAL OFFICER,EDF ENERGY CUSTOMERS PLC,459821,131895.63,523041202
BEIS,Met Office,2021-09-09,06 ACCOMMODATION,CHIEF FINANCIAL OFFICER,EDF ENERGY CUSTOMERS PLC,459822,139556.01,523041202
BEIS,Met Office,2021-09-09,06 ACCOMMODATION,CHIEF FINANCIAL OFFICER,EDF ENERGY CUSTOMERS PLC,459823,398064.04,523041202
BEIS,Met Office,2021-09-01,11 SERVICES,CHIEF FINANCIAL OFFICER,EIR,22971,52.3,4736919B
BEIS,Met Office,2021-09-09,03 STAFF COSTS T&S,CHIEF FINANCIAL OFFICER,ENTERPRISE RENT A CAR UK LTD,459913,96.95,215557314
BEIS,Met Office,2021-09-09,03 STAFF COSTS T&S,CHIEF FINANCIAL OFFICER,ENTERPRISE RENT A CAR UK LTD,459903,353.16,215557314
BEIS,Met Office,2021-09-22,03 STAFF COSTS T&S,CHIEF FINANCIAL OFFICER,ENTERPRISE RENT A CAR UK LTD,460216,497.83,215557314
BEIS,Met Office,2021-09-06,03 STAFF COSTS T&S,CHIEF FINANCIAL OFFICER,ENTERPRISE RENT A CAR UK LTD,459768,1085.37,215557314
BEIS,Met Office,2021-09-15,03 STAFF COSTS T&S,CHIEF FINANCIAL OFFICER,ENTERPRISE RENT A CAR UK LTD,460015,1098.39,215557314
BEIS,Met Office,2021-09-01,03 STAFF COSTS T&S,CHIEF FINANCIAL OFFICER,ENTERPRISE RENT A CAR UK LTD,459595,1161.87,215557314
BEIS,Met Office,2021-09-28,03 STAFF COSTS T&S,CHIEF FINANCIAL OFFICER,ENTERPRISE RENT A CAR UK LTD,460423,2380.58,215557314
BEIS,Met Office,2021-09-09,06 ACCOMMODATION,CHIEF FINANCIAL OFFICER,Exeter & Devon Airport Limited,459841,500,168173978
BEIS,Met Office,2021-09-28,06 ACCOMMODATION,CHIEF FINANCIAL OFFICER,Exeter City Council,453749,140288,142335594
BEIS,Met Office,2021-09-13,11 SERVICES,CHIEF FINANCIAL OFFICER,EXPONENTIAL-E,459849,1336.5,GB798572653
BEIS,Met Office,2021-09-30,11 SERVICES,CHIEF FINANCIAL OFFICER,EXPONENTIAL-E,457826,1919.5,GB798572653
BEIS,Met Office,2021-09-30,11 SERVICES,CHIEF FINANCIAL OFFICER,EXPONENTIAL-E,457827,4448.25,GB798572653
BEIS,Met Office,2021-09-06,06 ACCOMMODATION,CHIEF FINANCIAL OFFICER,FAIR ISLE ELECTRICITY COMPANY LTD,459612,126.86,774548783
BEIS,Met Office,2021-09-30,06 ACCOMMODATION,CHIEF FINANCIAL OFFICER,Farnborough Airport Ltd,460533,1300,-
BEIS,Met Office,2021-09-01,11 SERVICES,CHIEF FINANCIAL OFFICER,FSI (FM SOLUTIONS) LTD,458722,1000,166398173
BEIS,Met Office,2021-09-15,11 SERVICES,CHIEF FINANCIAL OFFICER,GAMMA TELECOM LTD,460062,99.73,823820344
BEIS,Met Office,2021-09-13,11 SERVICES,CHIEF FINANCIAL OFFICER,GAMMA TELECOM LTD,459915,165.98,823820344
BEIS,Met Office,2021-09-15,11 SERVICES,CHIEF FINANCIAL OFFICER,GAMMA TELECOM LTD,460062,27392.03,823820344
BEIS,Met Office,2021-09-13,11 SERVICES,CHIEF FINANCIAL OFFICER,GAMMA TELECOM LTD,459915,44785.75,823820344
BEIS,Met Office,2021-09-15,11 SERVICES,CHIEF FINANCIAL OFFICER,GIBRALTAR NYNEX COMMUNICATIONS LTD,460060,702,NOVAT
BEIS,Met Office,2021-09-08,06 ACCOMMODATION,CHIEF FINANCIAL OFFICER,GROSVENOR SYSTEMS LTD,459745,456,342873151
BEIS,Met Office,2021-09-08,06 ACCOMMODATION,CHIEF FINANCIAL OFFICER,GROSVENOR SYSTEMS LTD,459743,725,342873151
BEIS,Met Office,2021-09-08,06 ACCOMMODATION,CHIEF FINANCIAL OFFICER,GROSVENOR SYSTEMS LTD,459744,6864.3,342873151
BEIS,Met Office,2021-09-20,06 ACCOMMODATION,CHIEF FINANCIAL OFFICER,HSB ENGINEERING INSURANCE SERVICES LTD,460026,-156.4,652642243
BEIS,Met Office,2021-09-20,06 ACCOMMODATION,CHIEF FINANCIAL OFFICER,HSB ENGINEERING INSURANCE SERVICES LTD,459762,156.4,652642243
BEIS,Met Office,2021-09-20,06 ACCOMMODATION,CHIEF FINANCIAL OFFICER,HSB ENGINEERING INSURANCE SERVICES LTD,460120,156.4,652642243
BEIS,Met Office,2021-09-20,06 ACCOMMODATION,CHIEF FINANCIAL OFFICER,HSB ENGINEERING INSURANCE SERVICES LTD,459763,5416.46,652642243
BEIS,Met Office,2021-09-01,06 ACCOMMODATION,CHIEF FINANCIAL OFFICER,IHS GLOBAL LTD,459613,11792.18,207851367
BEIS,Met Office,2021-09-17,11 SERVICES,CHIEF FINANCIAL OFFICER,INTEROUTE COMMUNICATIONS LIMITED,460131,4931.94,832 7071 39
BEIS,Met Office,2021-09-22,06 ACCOMMODATION,CHIEF FINANCIAL OFFICER,JAMES & MARCIA BENJAMIN,459839,1255,-
BEIS,Met Office,2021-09-09,11 SERVICES,CHIEF FINANCIAL OFFICER,JERSEY TELECOM,459886,12.48,NOTVATREG
BEIS,Met Office,2021-09-09,11 SERVICES,CHIEF FINANCIAL OFFICER,JERSEY TELECOM,459886,52.2,NOTVATREG
BEIS,Met Office,2021-09-09,11 SERVICES,CHIEF FINANCIAL OFFICER,JERSEY TELECOM,459886,1219.64,NOTVATREG
BEIS,Met Office,2021-09-15,13 MISCELLANEOUS,CHIEF FINANCIAL OFFICER,LANGLEY SEARCH AND SELECTION LTD,459989,8003.94,789727649
BEIS,Met Office,2021-09-30,11 SERVICES,CHIEF FINANCIAL OFFICER,LEASEDRIVE RENTAL MANAGEMENT LTD,460490,743.35,733546040
BEIS,Met Office,2021-09-01,11 SERVICES,CHIEF FINANCIAL OFFICER,LEASEDRIVE RENTAL MANAGEMENT LTD,459566,788,733546040
BEIS,Met Office,2021-09-01,11 SERVICES,CHIEF FINANCIAL OFFICER,LICENCE BUREAU LTD,459562,103.85,820219467
BEIS,Met Office,2021-09-30,11 SERVICES,CHIEF FINANCIAL OFFICER,LICENCE BUREAU LTD,460559,118.4,820219467
BEIS,Met Office,2021-09-30,11 SERVICES,CHIEF FINANCIAL OFFICER,LOGICALIS UK Limited,460364,4600,864475392
BEIS,Met Office,2021-09-06,11 SERVICES,CHIEF FINANCIAL OFFICER,MAWASEM LTD,459755,37711.26,197694731
BEIS,Met Office,2021-09-06,06 ACCOMMODATION,CHIEF FINANCIAL OFFICER,Mitie Landscapes Ltd,459670,48.19,GB 416 706 654
BEIS,Met Office,2021-09-24,06 ACCOMMODATION,CHIEF FINANCIAL OFFICER,Mitie Landscapes Ltd,460351,624,GB 416 706 654
BEIS,Met Office,2021-09-06,06 ACCOMMODATION,CHIEF FINANCIAL OFFICER,Mitie Landscapes Ltd,459671,935.64,GB 416 706 654
BEIS,Met Office,2021-09-06,06 ACCOMMODATION,CHIEF FINANCIAL OFFICER,Mitie Landscapes Ltd,459669,5991.01,GB 416 706 654
BEIS,Met Office,2021-09-24,06 ACCOMMODATION,CHIEF FINANCIAL OFFICER,Mitie Landscapes Ltd,460349,5991.01,GB 416 706 654
BEIS,Met Office,2021-09-06,11 SERVICES,CHIEF FINANCIAL OFFICER,MITIE SECURITY LTD,459688,33,416706654
BEIS,Met Office,2021-09-06,11 SERVICES,CHIEF FINANCIAL OFFICER,MITIE SECURITY LTD,459689,940.5,416706654
BEIS,Met Office,2021-09-06,11 SERVICES,CHIEF FINANCIAL OFFICER,MITIE SECURITY LTD,459684,1408.17,416706654
BEIS,Met Office,2021-09-20,11 SERVICES,CHIEF FINANCIAL OFFICER,MITIE SECURITY LTD,459687,1879.52,416706654
BEIS,Met Office,2021-09-01,11 SERVICES,CHIEF FINANCIAL OFFICER,MITIE SECURITY LTD,459561,10263.36,416706654
BEIS,Met Office,2021-09-01,11 SERVICES,CHIEF FINANCIAL OFFICER,MITIE SECURITY LTD,459560,20526.35,416706654
BEIS,Met Office,2021-09-22,06 ACCOMMODATION,CHIEF FINANCIAL OFFICER,MORAY COUNCIL,460196,162.46,663755506
BEIS,Met Office,2021-09-17,11 SERVICES,CHIEF FINANCIAL OFFICER,Morton Fraser LLP,460016,324,269129336
BEIS,Met Office,2021-09-01,06 ACCOMMODATION,CHIEF FINANCIAL OFFICER,MOUNT CHARLES GROUP LTD,459578,533.67,517116274
BEIS,Met Office,2021-09-30,06 ACCOMMODATION,CHIEF FINANCIAL OFFICER,MOUNT CHARLES GROUP LTD,460488,533.67,517116274
BEIS,Met Office,2021-09-28,07 EQUIPMENT,CHIEF FINANCIAL OFFICER,NATWEST COMMERCIAL CARDS DIVISION,460272,7654.66,N/A
BEIS,Met Office,2021-09-15,06 ACCOMMODATION,CHIEF FINANCIAL OFFICER,NESS ENGINEERING LTD,460073,817.3,430188472
BEIS,Met Office,2021-09-20,FIXTURE & FITTINGS,CHIEF FINANCIAL OFFICER,NMCN PLC,460132,394.97,GB648191516
BEIS,Met Office,2021-09-20,FIXTURE & FITTINGS,CHIEF FINANCIAL OFFICER,NMCN PLC,460132,742.17,GB648191516
BEIS,Met Office,2021-09-20,FIXTURE & FITTINGS,CHIEF FINANCIAL OFFICER,NMCN PLC,460132,2305.43,GB648191516
BEIS,Met Office,2021-09-20,FIXTURE & FITTINGS,CHIEF FINANCIAL OFFICER,NMCN PLC,460132,9940.79,GB648191516
BEIS,Met Office,2021-09-01,13 MISCELLANEOUS,CHIEF FINANCIAL OFFICER,NORSCOTT VENDING SERVICES LTD,459531,85,751402071
BEIS,Met Office,2021-09-17,06 ACCOMMODATION,CHIEF FINANCIAL OFFICER,OCS Group UK Ltd,460210,-150.08,238034379
BEIS,Met Office,2021-09-17,06 ACCOMMODATION,CHIEF FINANCIAL OFFICER,OCS Group UK Ltd,451474,48.1,238034379
BEIS,Met Office,2021-09-17,06 ACCOMMODATION,CHIEF FINANCIAL OFFICER,OCS Group UK Ltd,454901,50.99,238034379
BEIS,Met Office,2021-09-17,06 ACCOMMODATION,CHIEF FINANCIAL OFFICER,OCS Group UK Ltd,458232,50.99,238034379
BEIS,Met Office,2021-09-16,13 MISCELLANEOUS,CHIEF FINANCIAL OFFICER,POSTURITE (UK) LTD,460084,30.99,583565114
BEIS,Met Office,2021-09-15,13 MISCELLANEOUS,CHIEF FINANCIAL OFFICER,POSTURITE (UK) LTD,460029,31.93,583565114
BEIS,Met Office,2021-09-15,13 MISCELLANEOUS,CHIEF FINANCIAL OFFICER,POSTURITE (UK) LTD,460027,42.75,583565114
BEIS,Met Office,2021-09-01,13 MISCELLANEOUS,CHIEF FINANCIAL OFFICER,POSTURITE (UK) LTD,459573,50,583565114
BEIS,Met Office,2021-09-15,13 MISCELLANEOUS,CHIEF FINANCIAL OFFICER,POSTURITE (UK) LTD,460031,50,583565114
BEIS,Met Office,2021-09-16,13 MISCELLANEOUS,CHIEF FINANCIAL OFFICER,POSTURITE (UK) LTD,460083,50,583565114
BEIS,Met Office,2021-09-10,13 MISCELLANEOUS,CHIEF FINANCIAL OFFICER,POSTURITE (UK) LTD,459664,53.91,583565114
BEIS,Met Office,2021-09-15,13 MISCELLANEOUS,CHIEF FINANCIAL OFFICER,POSTURITE (UK) LTD,460032,63.23,583565114
BEIS,Met Office,2021-09-16,13 MISCELLANEOUS,CHIEF FINANCIAL OFFICER,POSTURITE (UK) LTD,460091,63.23,583565114
BEIS,Met Office,2021-09-16,13 MISCELLANEOUS,CHIEF FINANCIAL OFFICER,POSTURITE (UK) LTD,460090,88.66,583565114
BEIS,Met Office,2021-09-16,13 MISCELLANEOUS,CHIEF FINANCIAL OFFICER,POSTURITE (UK) LTD,460089,454.43,583565114
BEIS,Met Office,2021-09-15,13 MISCELLANEOUS,CHIEF FINANCIAL OFFICER,POSTURITE (UK) LTD,460028,680.14,583565114
BEIS,Met Office,2021-09-03,06 ACCOMMODATION,CHIEF FINANCIAL OFFICER,POSTURITE (UK) LTD,459596,1285.88,583565114
BEIS,Met Office,2021-09-09,06 ACCOMMODATION,CHIEF FINANCIAL OFFICER,POWER NI ENERGY LTD,459752,423.29,617518142
BEIS,Met Office,2021-09-30,03 STAFF COSTS T&S,CHIEF FINANCIAL OFFICER,RAINBOW CITY TAXIS,460538,16.9,724295039
BEIS,Met Office,2021-09-28,06 ACCOMMODATION,CHIEF FINANCIAL OFFICER,REDACTED � PERSONAL DATA,460400,572.64,NOT VAT REGD
BEIS,Met Office,2021-09-16,06 ACCOMMODATION,CHIEF FINANCIAL OFFICER,REDACTED � PERSONAL DATA,460071,1144.15,943875678
BEIS,Met Office,2021-09-28,06 ACCOMMODATION,CHIEF FINANCIAL OFFICER,REDACTED � PERSONAL DATA,460397,1145.77,680949687
BEIS,Met Office,2021-09-16,06 ACCOMMODATION,CHIEF FINANCIAL OFFICER,REDACTED � PERSONAL DATA,460009,3754,001874305
BEIS,Met Office,2021-09-01,06 ACCOMMODATION,CHIEF FINANCIAL OFFICER,REDACTED � PERSONAL DATA,459526,10441.31,617358920
BEIS,Met Office,2021-09-13,06 ACCOMMODATION,CHIEF FINANCIAL OFFICER,RIVER RIDGE,459977,109.09,176286083
BEIS,Met Office,2021-09-16,06 ACCOMMODATION,CHIEF FINANCIAL OFFICER,SAFESTORE LTD,459978,2815.28,722887607
BEIS,Met Office,2021-09-28,06 ACCOMMODATION,CHIEF FINANCIAL OFFICER,Scottish Government,460399,450,888842551
BEIS,Met Office,2021-09-09,06 ACCOMMODATION,CHIEF FINANCIAL OFFICER,SHARED ACCESS LTD,459781,500,920672730
BEIS,Met Office,2021-09-30,FIXTURE & FITTINGS,CHIEF FINANCIAL OFFICER,SIGNS EXPRESS (EXETER),460416,30694,631397439
BEIS,Met Office,2021-09-01,06 ACCOMMODATION,CHIEF FINANCIAL OFFICER,South West Water Ltd,459521,1488.35,236873674
BEIS,Met Office,2021-09-13,06 ACCOMMODATION,CHIEF FINANCIAL OFFICER,South West Water Ltd,459994,3239.42,236873674
BEIS,Met Office,2021-09-03,FIXTURE & FITTINGS,CHIEF FINANCIAL OFFICER,SSE CONTRACTING LTD,459579,446.75,382894546
BEIS,Met Office,2021-09-09,06 ACCOMMODATION,CHIEF FINANCIAL OFFICER,ST MODWEN VENTURES LTD,459761,18.22,975081008
BEIS,Met Office,2021-09-30,PLANT AND EQUIPMENT,CHIEF FINANCIAL OFFICER,STRINGFELLOW BUILDING CONTRACTORS LTD.,460541,8200,155807746
BEIS,Met Office,2021-09-13,11 SERVICES,CHIEF FINANCIAL OFFICER,SURE SOUTH ATLANTIC LTD,459912,770,-
BEIS,Met Office,2021-09-16,11 SERVICES,CHIEF FINANCIAL OFFICER,SURE SOUTH ATLANTIC LTD,460085,1200.14,NOVATREG
BEIS,Met Office,2021-09-13,11 SERVICES,CHIEF FINANCIAL OFFICER,SURE SOUTH ATLANTIC LTD,459920,4743,-
BEIS,Met Office,2021-09-16,11 SERVICES,CHIEF FINANCIAL OFFICER,SURE SOUTH ATLANTIC LTD (ST HELENA),460080,1871.37,30005
BEIS,Met Office,2021-09-01,11 SERVICES,CHIEF FINANCIAL OFFICER,SWISSCOM (SCHWEIZ) AG,459043,86.16,-
BEIS,Met Office,2021-09-29,11 SERVICES,CHIEF FINANCIAL OFFICER,SWISSCOM (SCHWEIZ) AG,459918,86.57,-
BEIS,Met Office,2021-09-01,11 SERVICES,CHIEF FINANCIAL OFFICER,TELEFONICA O2 UK LIMITED,459572,0.14,778603785
BEIS,Met Office,2021-09-01,11 SERVICES,CHIEF FINANCIAL OFFICER,TELEFONICA O2 UK LIMITED,459572,50,778603785
BEIS,Met Office,2021-09-13,11 SERVICES,CHIEF FINANCIAL OFFICER,TELEFONICA O2 UK LIMITED,459916,6755.6,778603785
BEIS,Met Office,2021-09-29,11 SERVICES,CHIEF FINANCIAL OFFICER,TELIA FINLAND OYJ,22997,152.39,FI14756079
BEIS,Met Office,2021-09-08,06 ACCOMMODATION,CHIEF FINANCIAL OFFICER,THE CLEANING CREW COMPANY,459764,638,343579772
BEIS,Met Office,2021-09-06,06 ACCOMMODATION,CHIEF FINANCIAL OFFICER,THE CLEANING CREW COMPANY,459676,708,343579772
BEIS,Met Office,2021-09-30,06 ACCOMMODATION,CHIEF FINANCIAL OFFICER,THE NATIONAL TRUST FOR SCOTLAND,460522,600,429459027
BEIS,Met Office,2021-09-22,11 SERVICES,CHIEF FINANCIAL OFFICER,Vodafone Limited,460200,585.12,569953277
BEIS,Met Office,2021-09-22,11 SERVICES,CHIEF FINANCIAL OFFICER,Vodafone Limited,460199,684.06,569953277
BEIS,Met Office,2021-09-23,11 SERVICES,CHIEF FINANCIAL OFFICER,Vodafone Limited,460201,4623.23,569953277
BEIS,Met Office,2021-09-01,11 SERVICES,CHIEF FINANCIAL OFFICER,WEBEX COMMUNICATIONS UK LTD,459570,209.92,815974302
BEIS,Met Office,2021-09-09,11 SERVICES,CHIEF FINANCIAL OFFICER,WEBEX COMMUNICATIONS UK LTD,459769,209.92,815974302
BEIS,Met Office,2021-09-29,11 SERVICES,CHIEF FINANCIAL OFFICER,WEBEX COMMUNICATIONS UK LTD,460420,209.92,815974302
BEIS,Met Office,2021-09-17,06 ACCOMMODATION,CHIEF FINANCIAL OFFICER,Wessex Water Services Ltd,460138,500,-
BEIS,Met Office,2021-09-27,11 SERVICES,CHIEF FINANCIAL OFFICER,WT CONSULTANCY (SW) LTD,459601,3500,223 4662 25
BEIS,Met Office,2021-09-23,11 SERVICES,MARKETS,ACCELERATION EMARKETING,456976,500,848940776
BEIS,Met Office,2021-09-13,11 SERVICES,MARKETS,ACCELERATION EMARKETING,459908,4067.47,848940776
BEIS,Met Office,2021-09-16,11 SERVICES,MARKETS,ADOPSTAR,458802,1250,115036848
BEIS,Met Office,2021-09-03,11 SERVICES,MARKETS,ADOPSTAR,459683,1250,115036848
BEIS,Met Office,2021-09-27,12 INTERNATIONAL,MARKETS,APPLIED SATELLITE TECHNOLOGY SYSTEMS LTD,460298,30.56,720108683
BEIS,Met Office,2021-09-30,11 SERVICES,MARKETS,ATHENA INFONOMICS LIMITED,460537,5044,-
BEIS,Met Office,2021-09-15,11 SERVICES,MARKETS,"BASILIO SOZINHO CUBULA SERVI�OS, E.I.",10370,4423.35,N/A
BEIS,Met Office,2021-09-29,11 SERVICES,MARKETS,BBC MEDIA ACTION,460453,10500,GB333289454
BEIS,Met Office,2021-09-15,11 SERVICES,MARKETS,BJSS LIMITED,459990,16460,613295452
BEIS,Met Office,2021-09-06,11 SERVICES,MARKETS,CACI LTD,459758,17597.7,380609841
BEIS,Met Office,2021-09-06,11 SERVICES,MARKETS,CACI LTD,459757,85401.62,380609841
BEIS,Met Office,2021-09-30,11 SERVICES,MARKETS,CENTRO INTERNACIONAL MEJORAMIENTO DE MAIZ Y T,460402,98470,CIM890330FI8
BEIS,Met Office,2021-09-30,11 SERVICES,MARKETS,CENTRO INTERNACIONAL MEJORAMIENTO DE MAIZ Y T,460402,108014,CIM890330FI8
BEIS,Met Office,2021-09-09,11 SERVICES,MARKETS,Cgi It Uk Limited,459760,186682.7,232615194
BEIS,Met Office,2021-09-09,11 SERVICES,MARKETS,Cgi It Uk Limited,459759,186736.7,232615194
BEIS,Met Office,2021-09-27,11 SERVICES,MARKETS,CULVERWELL ASSOCIATES LTD,460321,3000,386 6119 65
BEIS,Met Office,2021-09-28,11 SERVICES,MARKETS,DBS FINANCE RECEIPTS CTS,460386,8774.91,888805068
BEIS,Met Office,2021-09-24,11 SERVICES,MARKETS,DBS FINANCE RECEIPTS CTS,460378,12412.24,888805068
BEIS,Met Office,2021-09-23,11 SERVICES,MARKETS,DRIVE CREATIVE STUDIO LTD,460324,2870,167656860
BEIS,Met Office,2021-09-01,11 SERVICES,MARKETS,EYECADEMY LTD,459605,20537.5,GB937915092
BEIS,Met Office,2021-09-16,11 SERVICES,MARKETS,FCDO,459539,2973.66,888813560
BEIS,Met Office,2021-09-16,11 SERVICES,MARKETS,FCDO,458365,3037.43,888813560
BEIS,Met Office,2021-09-16,11 SERVICES,MARKETS,FCDO,456735,4329.02,888813560
BEIS,Met Office,2021-09-16,11 SERVICES,MARKETS,FCDO,459583,22976.46,888813560
BEIS,Met Office,2021-09-15,11 SERVICES,MARKETS,Global Weather Corporation,10343,14427.33,-
BEIS,Met Office,2021-09-22,04 CONTRACTORS,MARKETS,HAYS SPECIALIST RECRUITMENT LTD,455475,366.16,773695871
BEIS,Met Office,2021-09-03,11 SERVICES,MARKETS,Health & Safety Laboratory,459565,15000,888810177
BEIS,Met Office,2021-09-09,12 INTERNATIONAL,MARKETS,HOWTOMOODLE LTD,459416,2800,GB 8337554 13
BEIS,Met Office,2021-09-09,12 INTERNATIONAL,MARKETS,HOWTOMOODLE LTD,459890,2800,GB 8337554 13
BEIS,Met Office,2021-09-09,12 INTERNATIONAL,MARKETS,HOWTOMOODLE LTD,459889,5050,GB 8337554 13
BEIS,Met Office,2021-09-22,11 SERVICES,MARKETS,ICIMOD,10371,65378.35,-
BEIS,Met Office,2021-09-08,08 SOFTWARE LICENCES,MARKETS,"INTELLOVATIONS, LLC",10360,1487.55,-
BEIS,Met Office,2021-09-22,04 CONTRACTORS,MARKETS,JOBSEEKERS RECRUITMENT SERVICES LTD,460325,273.6,130 1297 14
BEIS,Met Office,2021-09-09,04 CONTRACTORS,MARKETS,JOBSEEKERS RECRUITMENT SERVICES LTD,459846,538.08,130 1297 14
BEIS,Met Office,2021-09-06,04 CONTRACTORS,MARKETS,JOBSEEKERS RECRUITMENT SERVICES LTD,459667,674.88,130 1297 14
BEIS,Met Office,2021-09-15,04 CONTRACTORS,MARKETS,JOBSEEKERS RECRUITMENT SERVICES LTD,460074,674.88,130 1297 14
BEIS,Met Office,2021-09-01,11 SERVICES,MARKETS,LTS INTERNATIONAL,459524,25988.85,267763712
BEIS,Met Office,2021-09-06,11 SERVICES,MARKETS,LTS INTERNATIONAL,459668,46296.75,267763712
BEIS,Met Office,2021-09-22,12 INTERNATIONAL,MARKETS,MACITECHSY SOLUTIONS,460134,250,-
BEIS,Met Office,2021-09-08,12 INTERNATIONAL,MARKETS,MACITECHSY SOLUTIONS,459679,640,-
BEIS,Met Office,2021-09-22,12 INTERNATIONAL,MARKETS,MACITECHSY SOLUTIONS,460134,1600,-
BEIS,Met Office,2021-09-16,11 SERVICES,MARKETS,MOMENTUM INCORPORATED,460058,6400,598958541
BEIS,Met Office,2021-09-16,11 SERVICES,MARKETS,MOMENTUM INCORPORATED,460059,6400,598958541
BEIS,Met Office,2021-09-01,11 SERVICES,MARKETS,MOMENTUM INCORPORATED,459373,6530,598958541
BEIS,Met Office,2021-09-16,07 EQUIPMENT,MARKETS,OTT HYDROMET,460082,55,737592693
BEIS,Met Office,2021-09-16,07 EQUIPMENT,MARKETS,OTT HYDROMET,460082,927.5,737592693
BEIS,Met Office,2021-09-13,11 SERVICES,MARKETS,OVERSEAS DEVELOPMENT INSTITUTE SALES LTD,460014,1400,250 3150 54
BEIS,Met Office,2021-09-01,11 SERVICES,MARKETS,PAUL WATKISS ASSOCIATES LTD,459447,2225,869587641
BEIS,Met Office,2021-09-28,06 ACCOMMODATION,MARKETS,R & C CRICHTON LTD,460395,72,933 7802 12
BEIS,Met Office,2021-09-28,06 ACCOMMODATION,MARKETS,R & C CRICHTON LTD,460395,400,933 7802 12
BEIS,Met Office,2021-09-29,11 SERVICES,MARKETS,Red Cross Red Crescent Climate Centre,22974,29234.53,N/A
BEIS,Met Office,2021-09-28,06 ACCOMMODATION,MARKETS,REDACTED � PERSONAL DATA,460396,235,UTR: 6885284589
BEIS,Met Office,2021-09-28,06 ACCOMMODATION,MARKETS,REDACTED � PERSONAL DATA,460401,285,-
BEIS,Met Office,2021-09-17,11 SERVICES,MARKETS,REDACTED � PERSONAL DATA,460162,800,-
BEIS,Met Office,2021-09-01,12 INTERNATIONAL,MARKETS,REDACTED � PERSONAL DATA,10356,2539.71,-
BEIS,Met Office,2021-09-30,06 ACCOMMODATION,MARKETS,SCOTTISH HYDRO-ELECTRIC,460520,27.15,553769603
BEIS,Met Office,2021-09-30,06 ACCOMMODATION,MARKETS,SCOTTISH HYDRO-ELECTRIC,460521,46.88,553769603
BEIS,Met Office,2021-09-23,11 SERVICES,MARKETS,SOCIAL SENSING LTD,460257,2758,-
BEIS,Met Office,2021-09-23,11 SERVICES,MARKETS,SOCIAL SENSING LTD,460258,5768,-
BEIS,Met Office,2021-09-17,11 SERVICES,MARKETS,SOFTWIRE TECHNOLOGY LIMITED,460143,14700,752 1253 57
BEIS,Met Office,2021-09-16,11 SERVICES,MARKETS,SOFTWIRE TECHNOLOGY LIMITED,458751,16077,752 1253 57
BEIS,Met Office,2021-09-16,11 SERVICES,MARKETS,SOFTWIRE TECHNOLOGY LIMITED,458750,43680,752 1253 57
BEIS,Met Office,2021-09-15,03 STAFF COSTS T&S,MARKETS,SOLOMON & COMPANY (ST HELENA) PLC,460061,950,-
BEIS,Met Office,2021-09-15,11 SERVICES,MARKETS,SOUTHSOUTHNORTH,460072,3710.97,4790219721
BEIS,Met Office,2021-09-17,11 SERVICES,MARKETS,SPOKE (INTERACTIVE) LTD,460077,700,840156451
BEIS,Met Office,2021-09-29,11 SERVICES,MARKETS,SYNTAGMA TRANSLATIONS,458035,33.08,-
BEIS,Met Office,2021-09-29,11 SERVICES,MARKETS,SYNTAGMA TRANSLATIONS,458036,378.09,-
BEIS,Met Office,2021-09-24,11 SERVICES,MARKETS,UKRI,454301,-15000,GB287461957
BEIS,Met Office,2021-09-24,11 SERVICES,MARKETS,UKRI,454224,15000,GB287461957
BEIS,Met Office,2021-09-15,11 SERVICES,MARKETS,UNIVERSITY OF FLORIDA BOARD OF TRUSTEES,460078,61656.93,-
BEIS,Met Office,2021-09-09,11 SERVICES,OFFICE OF THE CEO,THE LEGAL DIRECTOR,459680,3600,899 338941
BEIS,Met Office,2021-09-22,PAYE AND VAT,OTHER,DHL INTERNATIONAL (UK) LTD,460174,751.4,751812341
BEIS,Met Office,2021-09-08,CYCLESCHEME,OTHER,EDENRED UK (CYCLESCHEME),459599,4113.61,649 503 520
BEIS,Met Office,2021-09-28,TRADE CREDITORS,OTHER,NATWEST COMMERCIAL CARDS DIVISION,460273,137160.5,N/A
BEIS,Met Office,2021-09-30,11 SERVICES,PEOPLE,ADJUST,460492,595,-
BEIS,Met Office,2021-09-08,11 SERVICES,PEOPLE,ADJUST,459824,790,-
BEIS,Met Office,2021-09-22,11 SERVICES,PEOPLE,BEAMANS LTD,460202,6970,656875579
BEIS,Met Office,2021-09-01,11 SERVICES,PEOPLE,BI-DESIGN EUROPE LTD T/A HOME,459475,1771,-
BEIS,Met Office,2021-09-06,08 SOFTWARE LICENCES,PEOPLE,CATALYST IT,459706,2075,978169262
BEIS,Met Office,2021-09-15,11 SERVICES,PEOPLE,CIVICA UK LIMITED,459974,7162.66,391171065
BEIS,Met Office,2021-09-20,11 SERVICES,PEOPLE,EDENRED - CHILDCARE VOUCHERS,460166,-243,649 503 520
BEIS,Met Office,2021-09-20,11 SERVICES,PEOPLE,EDENRED - CHILDCARE VOUCHERS,460168,1,649 503 520
BEIS,Met Office,2021-09-22,11 SERVICES,PEOPLE,EDENRED - CHILDCARE VOUCHERS,460301,130,649 503 520
BEIS,Met Office,2021-09-20,11 SERVICES,PEOPLE,EDENRED - CHILDCARE VOUCHERS,460167,486,649 503 520
BEIS,Met Office,2021-09-23,11 SERVICES,PEOPLE,EDENRED - CHILDCARE VOUCHERS,460330,729,649 503 520
BEIS,Met Office,2021-09-09,11 SERVICES,PEOPLE,EDENRED - CHILDCARE VOUCHERS,459784,13452.5,649 503 520
BEIS,Met Office,2021-09-08,11 SERVICES,PEOPLE,EDENRED I&M (IRS VOUCHERS),459843,14178,649 503 520
BEIS,Met Office,2021-09-08,11 SERVICES,PEOPLE,EDENRED I&M (IRS VOUCHERS),458059,20471.4,649 503 520
BEIS,Met Office,2021-09-08,13 MISCELLANEOUS,PEOPLE,HEALTH MANAGEMENT LTD,459537,2163.85,792250621
BEIS,Met Office,2021-09-08,13 MISCELLANEOUS,PEOPLE,HEALTH MANAGEMENT LTD,459538,2796.8,792250621
BEIS,Met Office,2021-09-28,13 MISCELLANEOUS,PEOPLE,HEALTH MANAGEMENT LTD,460418,2893.94,792250621
BEIS,Met Office,2021-09-29,11 SERVICES,PEOPLE,HOPSCOTCH CONSULTING,458679,12526,102099056
BEIS,Met Office,2021-09-22,11 SERVICES,PEOPLE,LB TRAINING LTD,460268,395,-
BEIS,Met Office,2021-09-17,04 CONTRACTORS,PEOPLE,MATRIX SCM LIMITED,460140,195521.16,249 5734 68
BEIS,Met Office,2021-09-06,04 CONTRACTORS,PEOPLE,MATRIX SCM LIMITED,459690,207050.17,249 5734 68
BEIS,Met Office,2021-09-01,04 CONTRACTORS,PEOPLE,MATRIX SCM LIMITED,459523,216563.79,249 5734 68
BEIS,Met Office,2021-09-15,04 CONTRACTORS,PEOPLE,MATRIX SCM LIMITED,459909,236932.61,249 5734 68
BEIS,Met Office,2021-09-27,04 CONTRACTORS,PEOPLE,MATRIX SCM LIMITED,460350,241762.32,249 5734 68
BEIS,Met Office,2021-09-30,04 CONTRACTORS,PEOPLE,MATRIX SCM LIMITED,460561,257148.19,249 5734 68
BEIS,Met Office,2021-09-09,11 SERVICES,PEOPLE,PSYCHOLOGICA,459847,330,143530636
BEIS,Met Office,2021-09-27,11 SERVICES,PEOPLE,REDACTED � PERSONAL DATA,460163,500,143043312
BEIS,Met Office,2021-09-27,11 SERVICES,PEOPLE,REDACTED � PERSONAL DATA,460164,1101.17,143043312
BEIS,Met Office,2021-09-07,11 SERVICES,PEOPLE,SILICON REEF LTD,459581,6218.82,GB 254 7458 79
BEIS,Met Office,2021-09-07,11 SERVICES,PEOPLE,SILICON REEF LTD,458686,11017.06,GB 254 7458 79
BEIS,Met Office,2021-09-07,11 SERVICES,PEOPLE,SILICON REEF LTD,458518,19237.5,GB 254 7458 79
BEIS,Met Office,2021-09-01,11 SERVICES,PEOPLE,SWANTECH LOGISTICS LTD,459597,900,769332401
BEIS,Met Office,2021-09-10,11 SERVICES,PEOPLE,SWANTECH LOGISTICS LTD,459665,900,769332401
BEIS,Met Office,2021-09-24,11 SERVICES,PEOPLE,THYMOMETRICS LIMITED,460293,390,GB 154 4517 15
BEIS,Met Office,2021-09-01,11 SERVICES,PROGRAMMES,Arup,459563,2075.63,524461265
BEIS,Met Office,2021-09-28,11 SERVICES,PROGRAMMES,Arup,460404,10876.79,524461265
BEIS,Met Office,2021-09-29,11 SERVICES,PROGRAMMES,BAE SYSTEMS APPLIED INTELLIGENCE LIMITED,460485,5015.61,GB641407169
BEIS,Met Office,2021-09-28,11 SERVICES,PROGRAMMES,BAE SYSTEMS APPLIED INTELLIGENCE LIMITED,460388,8141.28,GB641407169
BEIS,Met Office,2021-09-23,11 SERVICES,PROGRAMMES,BAE SYSTEMS APPLIED INTELLIGENCE LIMITED,460178,14070,GB641407169
BEIS,Met Office,2021-09-23,11 SERVICES,PROGRAMMES,BAE SYSTEMS APPLIED INTELLIGENCE LIMITED,460179,18608.64,GB641407169
BEIS,Met Office,2021-09-23,11 SERVICES,PROGRAMMES,BAE SYSTEMS APPLIED INTELLIGENCE LIMITED,460182,20636,GB641407169
BEIS,Met Office,2021-09-23,11 SERVICES,PROGRAMMES,BAE SYSTEMS APPLIED INTELLIGENCE LIMITED,460183,22097.76,GB641407169
BEIS,Met Office,2021-09-28,11 SERVICES,PROGRAMMES,BAE SYSTEMS APPLIED INTELLIGENCE LIMITED,460387,26828,GB641407169
BEIS,Met Office,2021-09-28,11 SERVICES,PROGRAMMES,BAE SYSTEMS APPLIED INTELLIGENCE LIMITED,460389,28785.24,GB641407169
BEIS,Met Office,2021-09-29,11 SERVICES,PROGRAMMES,BAE SYSTEMS APPLIED INTELLIGENCE LIMITED,460486,59459.43,GB641407169
BEIS,Met Office,2021-09-20,11 SERVICES,PROGRAMMES,BJSS LIMITED,459711,8230,613295452
BEIS,Met Office,2021-09-20,11 SERVICES,PROGRAMMES,BJSS LIMITED,459712,13168,613295452
BEIS,Met Office,2021-09-20,11 SERVICES,PROGRAMMES,BJSS LIMITED,459991,17283,613295452
BEIS,Met Office,2021-09-20,11 SERVICES,PROGRAMMES,BJSS LIMITED,459713,17694.5,613295452
BEIS,Met Office,2021-09-13,11 SERVICES,PROGRAMMES,BJSS LIMITED,459993,37787.5,613295452
BEIS,Met Office,2021-09-03,06 ACCOMMODATION,PROGRAMMES,CBRE MANAGED SERVICES LTD,459600,22826.09,853936883
BEIS,Met Office,2021-09-03,06 ACCOMMODATION,PROGRAMMES,CBRE MANAGED SERVICES LTD,459604,54526.25,853936883
BEIS,Met Office,2021-09-30,08 SOFTWARE LICENCES,PROGRAMMES,CLEARVISION (CM) LIMITED,460439,4235.25,881364801
BEIS,Met Office,2021-09-22,11 SERVICES,PROGRAMMES,Dstl,460267,3174.2,888805166
BEIS,Met Office,2021-09-06,11 SERVICES,PROGRAMMES,EPIMORPHICS LTD,459710,20000,980295592
BEIS,Met Office,2021-09-06,11 SERVICES,PROGRAMMES,Esri (Uk) Ltd,459682,1090,787430791
BEIS,Met Office,2021-09-08,05 CONSULTANTS,PROGRAMMES,FLYFORM LTD,459624,55045,237333808
BEIS,Met Office,2021-09-09,11 SERVICES,PROGRAMMES,HOGAN LOVELLS INTERNATIONAL LLP,459905,11528.28,GB123371543
BEIS,Met Office,2021-09-09,11 SERVICES,PROGRAMMES,HOGAN LOVELLS INTERNATIONAL LLP,459905,13594.65,GB123371543
BEIS,Met Office,2021-09-09,11 SERVICES,PROGRAMMES,HOGAN LOVELLS INTERNATIONAL LLP,459906,17726.5,GB123371543
BEIS,Met Office,2021-09-09,11 SERVICES,PROGRAMMES,HOGAN LOVELLS INTERNATIONAL LLP,459907,210730.77,GB123371543
BEIS,Met Office,2021-09-10,11 SERVICES,PROGRAMMES,IAME LTD,459848,8125,140304468
BEIS,Met Office,2021-09-14,11 SERVICES,PROGRAMMES,JEREMY BENN ASSOCIATES LIMITED,459857,-32679,GB 665300941
BEIS,Met Office,2021-09-27,11 SERVICES,PROGRAMMES,JEREMY BENN ASSOCIATES LIMITED,460322,22507,GB 665300941
BEIS,Met Office,2021-09-01,11 SERVICES,PROGRAMMES,MAURITIUS METEOROLOGICAL SOCIETY,458792,2000,-
BEIS,Met Office,2021-09-03,11 SERVICES,PROGRAMMES,MYCSP LTD,459608,405.3,128754393
BEIS,Met Office,2021-09-09,11 SERVICES,PROGRAMMES,ROWE IT LTD,459831,5530,924964394
BEIS,Met Office,2021-09-08,11 SERVICES,PROGRAMMES,ROWE IT LTD,459832,6725.25,924964394
BEIS,Met Office,2021-09-08,11 SERVICES,PROGRAMMES,ROWE IT LTD,459832,13450.5,924964394
BEIS,Met Office,2021-09-09,11 SERVICES,PROGRAMMES,ROWE IT LTD,459827,14250,924964394
BEIS,Met Office,2021-09-08,11 SERVICES,PROGRAMMES,ROWE IT LTD,459826,44262.5,924964394
BEIS,Met Office,2021-09-08,11 SERVICES,PROGRAMMES,ROWE IT LTD,459832,47076.75,924964394
BEIS,Met Office,2021-09-08,11 SERVICES,PROGRAMMES,ROWE IT LTD,459834,48017.5,924964394
BEIS,Met Office,2021-09-08,11 SERVICES,PROGRAMMES,ROWE IT LTD,459835,61375,924964394
BEIS,Met Office,2021-09-27,11 SERVICES,PROGRAMMES,SCIENCE & TECHNOLOGY FACILITIES COUNCIL,459979,37616,287461957
BEIS,Met Office,2021-09-16,11 SERVICES,PROGRAMMES,SERVICENOW UK LTD.,460092,52288,-
BEIS,Met Office,2021-09-08,07 EQUIPMENT,PROGRAMMES,SSE CONTRACTING LTD,459575,3.99,382894546
BEIS,Met Office,2021-09-08,07 EQUIPMENT,PROGRAMMES,SSE CONTRACTING LTD,459577,600,382894546
BEIS,Met Office,2021-09-08,07 EQUIPMENT,PROGRAMMES,SSE CONTRACTING LTD,459576,5806.64,382894546
BEIS,Met Office,2021-09-29,11 SERVICES,PROGRAMMES,UCAR INCOMING PAYMENTS,10368,9367.63,-
BEIS,Met Office,2021-09-15,11 SERVICES,PROGRAMMES,UCAR INCOMING PAYMENTS,10347,15257.93,-
BEIS,Met Office,2021-09-24,11 SERVICES,PROGRAMMES,UKRI,460379,100000,GB287461957
BEIS,Met Office,2021-09-20,11 SERVICES,PROGRAMMES,University Of Exeter,459468,24000,142047795
BEIS,Met Office,2021-09-28,11 SERVICES,PROGRAMMES,University Of Exeter,460371,30000,142047795
BEIS,Met Office,2021-09-27,11 SERVICES,PROGRAMMES,University Of Oxford,458417,13000,125506730
BEIS,Met Office,2021-09-22,PLANT AND EQUIPMENT,PROGRAMMES,VAISALA LTD,460136,5000,336100011
BEIS,Met Office,2021-09-22,PLANT AND EQUIPMENT,PROGRAMMES,VAISALA LTD,460136,29400,336100011
BEIS,Met Office,2021-09-22,PLANT AND EQUIPMENT,PROGRAMMES,VAISALA LTD,460136,75000,336100011
BEIS,Met Office,2021-09-22,PLANT AND EQUIPMENT,PROGRAMMES,VAISALA LTD,460136,265100,336100011
BEIS,Met Office,2021-09-09,13 MISCELLANEOUS,SCIENCE,DESIGNAMITE LTD,459607,240,817819989
BEIS,Met Office,2021-09-22,11 SERVICES,SCIENCE,FCIENCIAS:ID,22936,36401.25,514187808
BEIS,Met Office,2021-09-01,11 SERVICES,SCIENCE,"LINDE GAS ESPANA, S.A.U.",22939,15.73,-
BEIS,Met Office,2021-09-20,11 SERVICES,SCIENCE,University Of Exeter,459468,12000,142047795
BEIS,Met Office,2021-09-09,11 SERVICES,SCIENCE,University Of Leeds,458916,83333.25,613451470
BEIS,Met Office,2021-09-30,11 SERVICES,SCIENCE,University Of Leeds,460441,83333.25,613451470
BEIS,Met Office,2021-09-22,13 MISCELLANEOUS,SCIENCE,University Of Oxford,460173,500,125506730
BEIS,Met Office,2021-09-09,11 SERVICES,SCIENCE,University Of Reading,459045,-752,200012659
BEIS,Met Office,2021-09-09,13 MISCELLANEOUS,SCIENCE,University Of Reading,459079,200,200012659
BEIS,Met Office,2021-09-27,13 MISCELLANEOUS,SCIENCE,University Of Reading,458375,333.34,200012659
BEIS,Met Office,2021-09-09,11 SERVICES,SCIENCE,University Of Reading,458256,752,200012659
BEIS,Met Office,2021-09-30,04 CONTRACTORS,SERVICES,AFBI,460553,50,252677738
BEIS,Met Office,2021-09-22,11 SERVICES,SERVICES,APPLIED SATELLITE TECHNOLOGY SYSTEMS LTD,460296,44.86,720108683
BEIS,Met Office,2021-09-22,11 SERVICES,SERVICES,APPLIED SATELLITE TECHNOLOGY SYSTEMS LTD,460300,61.13,720108683
BEIS,Met Office,2021-09-01,11 SERVICES,SERVICES,APPLIED SATELLITE TECHNOLOGY SYSTEMS LTD,459265,265.72,720108683
BEIS,Met Office,2021-09-22,11 SERVICES,SERVICES,APPLIED SATELLITE TECHNOLOGY SYSTEMS LTD,460294,277.96,720108683
BEIS,Met Office,2021-09-24,COMPUTER SOFTWARE,SERVICES,APPLIED SATELLITE TECHNOLOGY SYSTEMS LTD,460363,7977.24,720108683
BEIS,Met Office,2021-09-06,13 MISCELLANEOUS,SERVICES,AUTOMATED DOCUMENT SERVICES LTD,459715,8298.48,105353449
BEIS,Met Office,2021-09-27,08 SOFTWARE LICENCES,SERVICES,BARRIER NETWORKS LTD,460374,2800,GB135643417
BEIS,Met Office,2021-09-03,11 SERVICES,SERVICES,Boc Ltd,459594,-100.02,226556555
BEIS,Met Office,2021-09-17,11 SERVICES,SERVICES,Boc Ltd,460076,-100.02,226556555
BEIS,Met Office,2021-09-17,11 SERVICES,SERVICES,Boc Ltd,459674,8631.97,226556555
BEIS,Met Office,2021-09-03,11 SERVICES,SERVICES,Boc Ltd,458806,16051.5,226556555
BEIS,Met Office,2021-09-30,11 SERVICES,SERVICES,CARDIFF SCHOOL OF HEALTH SCIENCES,460407,4633.2,542915736
BEIS,Met Office,2021-09-16,07 EQUIPMENT,SERVICES,CARTER MANUFACTURING LIMITED,459540,5253.9,750 0259 62
BEIS,Met Office,2021-09-13,03 STAFF COSTS T&S,SERVICES,CARTUS LTD,459853,2.5,768489458
BEIS,Met Office,2021-09-13,03 STAFF COSTS T&S,SERVICES,CARTUS LTD,459852,156.8,768489458
BEIS,Met Office,2021-09-13,03 STAFF COSTS T&S,SERVICES,CARTUS LTD,459851,392,768489458
BEIS,Met Office,2021-09-13,03 STAFF COSTS T&S,SERVICES,CARTUS LTD,459850,2712.23,768489458
BEIS,Met Office,2021-09-08,03 STAFF COSTS T&S,SERVICES,CHARLIE'S TRAVEL LTD,459685,255,783848277
BEIS,Met Office,2021-09-08,03 STAFF COSTS T&S,SERVICES,CHARLIE'S TRAVEL LTD,459685,834,783848277
BEIS,Met Office,2021-09-01,STOCK,SERVICES,CHARNWOOD FASTENERS LIMITED,459614,0,355315757
BEIS,Met Office,2021-09-01,STOCK,SERVICES,CHARNWOOD FASTENERS LIMITED,459614,0,355315757
BEIS,Met Office,2021-09-01,11 SERVICES,SERVICES,CHARNWOOD FASTENERS LIMITED,459614,90,355315757
BEIS,Met Office,2021-09-01,TRADE CREDITORS,SERVICES,CHARNWOOD FASTENERS LIMITED,459614,1900,355315757
BEIS,Met Office,2021-09-01,TRADE CREDITORS,SERVICES,CHARNWOOD FASTENERS LIMITED,459614,2487.5,355315757
BEIS,Met Office,2021-09-08,10 EQUIPMENT MAINTENANCE,SERVICES,CIMEL ELECTRONIQUE,22976,3214.41,FR89662017201
BEIS,Met Office,2021-09-09,11 SERVICES,SERVICES,CLOUDREACH EUROPE LIMITED,459911,7300,978187168
BEIS,Met Office,2021-09-13,03 STAFF COSTS T&S,SERVICES,COLEMANS HIRE DRIVE,459535,540,-
BEIS,Met Office,2021-09-01,07 EQUIPMENT,SERVICES,COMPUTACENTER (UK) LTD,459564,20771.49,490334648
BEIS,Met Office,2021-09-30,11 SERVICES,SERVICES,DAVID HIDE ASTHMA & ALLERGY RES CENTRE,460484,4633.2,NOTVATREGD
BEIS,Met Office,2021-09-16,13 MISCELLANEOUS,SERVICES,DBS FINANCE RECEIPTS CTS,459914,30,888805068
BEIS,Met Office,2021-09-10,03 STAFF COSTS T&S,SERVICES,DBS FINANCE RECEIPTS CTS,459838,3272,888805068
BEIS,Met Office,2021-09-01,03 STAFF COSTS T&S,SERVICES,DBS FINANCE RECEIPTS CTS,459170,4075,888805068
BEIS,Met Office,2021-09-22,11 SERVICES,SERVICES,DHL INTERNATIONAL (UK) LTD,460174,18.79,751812341
BEIS,Met Office,2021-09-15,10 EQUIPMENT MAINTENANCE,SERVICES,ELASTICSEARCH LTD,459751,441.53,155790484
BEIS,Met Office,2021-09-29,13 MISCELLANEOUS,SERVICES,ELSEVIER SCIENCE LTD,460483,13160,494627212
BEIS,Met Office,2021-09-06,03 STAFF COSTS T&S,SERVICES,ENTERPRISE RENT A CAR UK LTD,459619,652.5,215557314
BEIS,Met Office,2021-09-27,STOCK,SERVICES,Environmental Measurements Ltd,460373,0,348513154
BEIS,Met Office,2021-09-27,STOCK,SERVICES,Environmental Measurements Ltd,460373,0,348513154
BEIS,Met Office,2021-09-27,11 SERVICES,SERVICES,Environmental Measurements Ltd,460373,40,348513154
BEIS,Met Office,2021-09-27,TRADE CREDITORS,SERVICES,Environmental Measurements Ltd,460373,540,348513154
BEIS,Met Office,2021-09-27,TRADE CREDITORS,SERVICES,Environmental Measurements Ltd,460373,2455.6,348513154
BEIS,Met Office,2021-09-27,STOCK,SERVICES,EQUINOX INSTRUMENTS LTD,458307,0,865954274
BEIS,Met Office,2021-09-27,11 SERVICES,SERVICES,EQUINOX INSTRUMENTS LTD,458307,20,865954274
BEIS,Met Office,2021-09-27,TRADE CREDITORS,SERVICES,EQUINOX INSTRUMENTS LTD,458307,600,865954274
BEIS,Met Office,2021-09-08,11 SERVICES,SERVICES,"EUTELSAT MADERIA, UNIPESSOAL LDA",22977,2230.18,PT511283733
BEIS,Met Office,2021-09-08,11 SERVICES,SERVICES,"EUTELSAT, S.A.",22952,2886.76,-
BEIS,Met Office,2021-09-06,03 STAFF COSTS T&S,SERVICES,FALKLAND ISLAND COMPANY LTD,459707,700,N/A
BEIS,Met Office,2021-09-06,03 STAFF COSTS T&S,SERVICES,FALKLAND ISLAND COMPANY LTD,459708,700,N/A
BEIS,Met Office,2021-09-06,03 STAFF COSTS T&S,SERVICES,FALKLAND ISLAND COMPANY LTD,459709,700,N/A
BEIS,Met Office,2021-09-10,03 STAFF COSTS T&S,SERVICES,FALKLAND ISLAND COMPANY LTD,459714,875,N/A
BEIS,Met Office,2021-09-23,13 MISCELLANEOUS,SERVICES,FALKLAND ISLAND COMPANY LTD,460115,2601.9,N/A
BEIS,Met Office,2021-09-08,03 STAFF COSTS T&S,SERVICES,HITACHI CAPITAL VEHICLE SOLUTIONS,459782,22.59,GB 823 8248 22
BEIS,Met Office,2021-09-08,03 STAFF COSTS T&S,SERVICES,HITACHI CAPITAL VEHICLE SOLUTIONS,459783,35.72,GB 823 8248 22
BEIS,Met Office,2021-09-09,13 MISCELLANEOUS,SERVICES,IJM CURRIE T/A FROSTED EARTH,459891,28,-
BEIS,Met Office,2021-09-06,13 MISCELLANEOUS,SERVICES,IMAGETEK SYSTEMS LTD,459374,3396.45,GB586331424
BEIS,Met Office,2021-09-09,11 SERVICES,SERVICES,INMARSAT SOLUTIONS (CANADA) INC,459740,29.16,766144223
BEIS,Met Office,2021-09-09,11 SERVICES,SERVICES,INMARSAT SOLUTIONS (CANADA) INC,459746,58.32,766144223
BEIS,Met Office,2021-09-09,11 SERVICES,SERVICES,INMARSAT SOLUTIONS (CANADA) INC,459741,1350.11,766144223
BEIS,Met Office,2021-09-15,11 SERVICES,SERVICES,Landmark Information Group Ltd,459973,82795,634509735
BEIS,Met Office,2021-09-15,11 SERVICES,SERVICES,Landmark Information Group Ltd,459975,83380.5,634509735
BEIS,Met Office,2021-09-10,06 ACCOMMODATION,SERVICES,LHR BUSINESS SUPPORT CENTRE LTD,459753,129.02,927365404
BEIS,Met Office,2021-09-09,11 SERVICES,SERVICES,MERKLE UK THREE LTD T/A MERKLE PERISCOPIX,459756,8315,843316243
BEIS,Met Office,2021-09-29,11 SERVICES,SERVICES,METOCEAN TELEMATICS LTD,10369,389.37,-
BEIS,Met Office,2021-09-01,11 SERVICES,SERVICES,METOCEAN TELEMATICS LTD,10336,393.62,-
BEIS,Met Office,2021-09-15,13 MISCELLANEOUS,SERVICES,National Oceanography Centre,459582,7000,GB 338 5487 64
BEIS,Met Office,2021-09-10,10 EQUIPMENT MAINTENANCE,SERVICES,Npl Management Ltd,459917,550,207523388
BEIS,Met Office,2021-09-10,10 EQUIPMENT MAINTENANCE,SERVICES,Npl Management Ltd,459917,1270,207523388
BEIS,Met Office,2021-09-15,11 SERVICES,SERVICES,NSSL GLOBAL LTD,10345,50.5,725151948
BEIS,Met Office,2021-09-15,11 SERVICES,SERVICES,NSSL GLOBAL LTD,10346,50.5,725151948
BEIS,Met Office,2021-09-15,03 STAFF COSTS T&S,SERVICES,NSSL GLOBAL LTD,459275,16881.72,725151948
BEIS,Met Office,2021-09-22,08 SOFTWARE LICENCES,SERVICES,PRESERVICA LTD,460271,9480,182627102
BEIS,Met Office,2021-09-29,10 EQUIPMENT MAINTENANCE,SERVICES,RAISE TELECOMS LTD,460417,14275,166016521
BEIS,Met Office,2021-09-17,10 EQUIPMENT MAINTENANCE,SERVICES,RAISE TELECOMS LTD,460133,17475,166016521
BEIS,Met Office,2021-09-09,10 EQUIPMENT MAINTENANCE,SERVICES,RAISE TELECOMS LTD,459825,17885,166016521
BEIS,Met Office,2021-09-15,11 SERVICES,SERVICES,REDACTED � PERSONAL DATA,459212,130.24,-
BEIS,Met Office,2021-09-30,04 CONTRACTORS,SERVICES,REDACTED � PERSONAL DATA,460499,1893.34,267253251
BEIS,Met Office,2021-09-22,11 SERVICES,SERVICES,REDACTED � PERSONAL DATA,460205,4850,167-3095-92
BEIS,Met Office,2021-09-06,03 STAFF COSTS T&S,SERVICES,SCOT GROUP LTD T/A THRIFTY CAR & VAN RENTAL,459696,254.74,GB744513244
BEIS,Met Office,2021-09-17,11 SERVICES,SERVICES,SOFTWIRE TECHNOLOGY LIMITED,459121,2520,752 1253 57
BEIS,Met Office,2021-09-17,11 SERVICES,SERVICES,SOFTWIRE TECHNOLOGY LIMITED,460142,2520,752 1253 57
BEIS,Met Office,2021-09-30,11 SERVICES,SERVICES,The James Hutton Institute,460477,4633.2,GB108249520
BEIS,Met Office,2021-09-08,11 SERVICES,SERVICES,Trinity House,459829,693,243120414
BEIS,Met Office,2021-09-08,11 SERVICES,SERVICES,Trinity House,459828,1122.45,243120414
BEIS,Met Office,2021-09-08,11 SERVICES,SERVICES,Trinity House,459829,1856,243120414
BEIS,Met Office,2021-09-08,11 SERVICES,SERVICES,Trinity House,459829,2165,243120414
BEIS,Met Office,2021-09-08,11 SERVICES,SERVICES,Trinity House,459829,26966,243120414
BEIS,Met Office,2021-09-03,11 SERVICES,SERVICES,UK TELEMATICS LIMITED,459677,57.75,GB763051643
BEIS,Met Office,2021-09-01,11 SERVICES,SERVICES,UK TELEMATICS LIMITED,459445,503.28,GB763051643
BEIS,Met Office,2021-09-30,11 SERVICES,SERVICES,University Of York,460479,4633.2,647200541
BEIS,Met Office,2021-09-08,STOCK,SERVICES,VAISALA LTD,22957,0,336100011
BEIS,Met Office,2021-09-08,STOCK,SERVICES,VAISALA LTD,22961,0,336100011
BEIS,Met Office,2021-09-08,TRADE CREDITORS,SERVICES,VAISALA LTD,22957,7319.57,336100011
BEIS,Met Office,2021-09-08,TRADE CREDITORS,SERVICES,VAISALA LTD,22961,16321.21,336100011
BEIS,Met Office,2021-09-01,11 SERVICES,SERVICES,VOLKSWAGEN GROUP LEASING,459568,3697.1,BG745963883
BEIS,Met Office,2021-09-01,11 SERVICES,SERVICES,VOLKSWAGEN GROUP LEASING,459569,3924.25,BG745963883
BEIS,Met Office,2021-09-20,11 SERVICES,SERVICES,YOUNG CALIBRATION LIMITED,460203,15,673900720
BEIS,Met Office,2021-09-20,10 EQUIPMENT MAINTENANCE,SERVICES,YOUNG CALIBRATION LIMITED,460203,1620,673900720
BEIS,Met Office,2021-09-08,11 SERVICES,TECHNOLOGY AND CIO,AKAMAI TECHNOLOGIES LTD,459767,4921.28,745091237
BEIS,Met Office,2021-09-08,11 SERVICES,TECHNOLOGY AND CIO,AKAMAI TECHNOLOGIES LTD,459767,25836.75,745091237
BEIS,Met Office,2021-09-01,11 SERVICES,TECHNOLOGY AND CIO,AMAZON WEB SERVICES INC.,10330,0.49,N/A
BEIS,Met Office,2021-09-29,11 SERVICES,TECHNOLOGY AND CIO,AMAZON WEB SERVICES INC.,10362,0.5,N/A
BEIS,Met Office,2021-09-15,11 SERVICES,TECHNOLOGY AND CIO,AMAZON WEB SERVICES INC.,10340,54.82,N/A
BEIS,Met Office,2021-09-01,11 SERVICES,TECHNOLOGY AND CIO,AMAZON WEB SERVICES INC.,10329,415.9,N/A
BEIS,Met Office,2021-09-15,11 SERVICES,TECHNOLOGY AND CIO,AMAZON WEB SERVICES INC.,10339,432.81,N/A
BEIS,Met Office,2021-09-29,11 SERVICES,TECHNOLOGY AND CIO,AMAZON WEB SERVICES INC.,10355,1253.64,N/A
BEIS,Met Office,2021-09-01,11 SERVICES,TECHNOLOGY AND CIO,AMAZON WEB SERVICES INC.,10337,11103.49,N/A
BEIS,Met Office,2021-09-22,11 SERVICES,TECHNOLOGY AND CIO,AMAZON WEB SERVICES INC.,10350,13625.22,N/A
BEIS,Met Office,2021-09-01,11 SERVICES,TECHNOLOGY AND CIO,AMAZON WEB SERVICES INC.,10335,102107.87,N/A
BEIS,Met Office,2021-09-23,11 SERVICES,TECHNOLOGY AND CIO,BAE SYSTEMS APPLIED INTELLIGENCE LIMITED,460221,8442,GB641407169
BEIS,Met Office,2021-09-20,11 SERVICES,TECHNOLOGY AND CIO,BAE SYSTEMS APPLIED INTELLIGENCE LIMITED,460180,8656.64,GB641407169
BEIS,Met Office,2021-09-23,11 SERVICES,TECHNOLOGY AND CIO,BAE SYSTEMS APPLIED INTELLIGENCE LIMITED,460264,10820.8,GB641407169
BEIS,Met Office,2021-09-24,11 SERVICES,TECHNOLOGY AND CIO,BAE SYSTEMS APPLIED INTELLIGENCE LIMITED,460365,13132,GB641407169
BEIS,Met Office,2021-09-08,11 SERVICES,TECHNOLOGY AND CIO,BOXXE,459765,484,734245248
BEIS,Met Office,2021-09-09,08 SOFTWARE LICENCES,TECHNOLOGY AND CIO,BYTES SOFTWARE SERVICES LTD,459833,3306.29,823818226
BEIS,Met Office,2021-09-09,08 SOFTWARE LICENCES,TECHNOLOGY AND CIO,BYTES SOFTWARE SERVICES LTD,459833,22545,823818226
BEIS,Met Office,2021-09-17,11 SERVICES,TECHNOLOGY AND CIO,CLOUDREACH EUROPE LIMITED,460139,2356.01,978187168
BEIS,Met Office,2021-09-13,11 SERVICES,TECHNOLOGY AND CIO,CLOUDREACH EUROPE LIMITED,459910,5150,978187168
BEIS,Met Office,2021-09-06,07 EQUIPMENT,TECHNOLOGY AND CIO,COMPUTACENTER (UK) LTD,457036,498.57,490334648
BEIS,Met Office,2021-09-13,07 EQUIPMENT,TECHNOLOGY AND CIO,COMPUTACENTER (UK) LTD,460003,533,490334648
BEIS,Met Office,2021-09-30,07 EQUIPMENT,TECHNOLOGY AND CIO,COMPUTACENTER (UK) LTD,460480,1734,490334648
BEIS,Met Office,2021-09-22,08 SOFTWARE LICENCES,TECHNOLOGY AND CIO,COMPUTACENTER (UK) LTD,460176,2127.68,490334648
BEIS,Met Office,2021-09-01,07 EQUIPMENT,TECHNOLOGY AND CIO,COMPUTACENTER (UK) LTD,459323,2157.2,490334648
BEIS,Met Office,2021-09-30,10 EQUIPMENT MAINTENANCE,TECHNOLOGY AND CIO,COMPUTACENTER (UK) LTD,460478,3202.07,490334648
BEIS,Met Office,2021-09-06,10 EQUIPMENT MAINTENANCE,TECHNOLOGY AND CIO,COMPUTACENTER (UK) LTD,459747,3370.6,490334648
BEIS,Met Office,2021-09-27,07 EQUIPMENT,TECHNOLOGY AND CIO,COMPUTACENTER (UK) LTD,460377,4386.56,490334648
BEIS,Met Office,2021-09-17,07 EQUIPMENT,TECHNOLOGY AND CIO,COMPUTACENTER (UK) LTD,460087,5149,490334648
BEIS,Met Office,2021-09-16,07 EQUIPMENT,TECHNOLOGY AND CIO,COMPUTACENTER (UK) LTD,460088,7716,490334648
BEIS,Met Office,2021-09-22,08 SOFTWARE LICENCES,TECHNOLOGY AND CIO,COMPUTACENTER (UK) LTD,460175,7857.74,490334648
BEIS,Met Office,2021-09-27,08 SOFTWARE LICENCES,TECHNOLOGY AND CIO,COMPUTACENTER (UK) LTD,460376,8000,490334648
BEIS,Met Office,2021-09-08,04 CONTRACTORS,TECHNOLOGY AND CIO,FDM GROUP LIMITED,459778,3780,583540529
BEIS,Met Office,2021-09-08,04 CONTRACTORS,TECHNOLOGY AND CIO,FDM GROUP LIMITED,459776,4050,583540529
BEIS,Met Office,2021-09-08,04 CONTRACTORS,TECHNOLOGY AND CIO,FDM GROUP LIMITED,459775,4779,583540529
BEIS,Met Office,2021-09-08,04 CONTRACTORS,TECHNOLOGY AND CIO,FDM GROUP LIMITED,459780,6300,583540529
BEIS,Met Office,2021-09-08,11 SERVICES,TECHNOLOGY AND CIO,FLYFORM LTD,459625,995,237333808
BEIS,Met Office,2021-09-08,11 SERVICES,TECHNOLOGY AND CIO,FLYFORM LTD,459625,3980,237333808
BEIS,Met Office,2021-09-22,10 EQUIPMENT MAINTENANCE,TECHNOLOGY AND CIO,GCHQ PUBLIC ACCOUNT - CESG,460269,17516.7,888813658
BEIS,Met Office,2021-09-15,04 CONTRACTORS,TECHNOLOGY AND CIO,GCS IT RECRUITMENT SPECIALISTS LTD,460012,3750,896156575
BEIS,Met Office,2021-09-15,04 CONTRACTORS,TECHNOLOGY AND CIO,GCS IT RECRUITMENT SPECIALISTS LTD,460013,9480,896156575
BEIS,Met Office,2021-09-08,08 SOFTWARE LICENCES,TECHNOLOGY AND CIO,GOOGLE IRELAND LTD,459772,42.35,6388047V
BEIS,Met Office,2021-09-13,10 EQUIPMENT MAINTENANCE,TECHNOLOGY AND CIO,Hewlett Packard Ltd,459593,83287.51,314149679
BEIS,Met Office,2021-09-13,10 EQUIPMENT MAINTENANCE,TECHNOLOGY AND CIO,Hewlett Packard Ltd,459593,629000,314149679
BEIS,Met Office,2021-09-20,08 SOFTWARE LICENCES,TECHNOLOGY AND CIO,Ibm United Kingdom Ltd,460165,-27758.37,107328000
BEIS,Met Office,2021-09-20,11 SERVICES,TECHNOLOGY AND CIO,Ibm United Kingdom Ltd,460177,6184.16,107328000
BEIS,Met Office,2021-09-06,08 SOFTWARE LICENCES,TECHNOLOGY AND CIO,Ibm United Kingdom Ltd,459698,8823.7,107328000
BEIS,Met Office,2021-09-20,08 SOFTWARE LICENCES,TECHNOLOGY AND CIO,Ibm United Kingdom Ltd,460056,27758.37,107328000
BEIS,Met Office,2021-09-08,11 SERVICES,TECHNOLOGY AND CIO,NTT DATA UK LTD,459626,28515,159334590
BEIS,Met Office,2021-09-08,11 SERVICES,TECHNOLOGY AND CIO,OGC (OPEN GEOSPATIAL CONSORTIUM) INC.,10354,8792.36,-
BEIS,Met Office,2021-09-13,10 EQUIPMENT MAINTENANCE,TECHNOLOGY AND CIO,ORACLE CORPORATION UK LTD,459976,243.42,391313073
BEIS,Met Office,2021-09-30,10 EQUIPMENT MAINTENANCE,TECHNOLOGY AND CIO,ORACLE CORPORATION UK LTD,460536,7539.78,391313073
BEIS,Met Office,2021-09-17,10 EQUIPMENT MAINTENANCE,TECHNOLOGY AND CIO,ORACLE CORPORATION UK LTD,460135,7981.95,391313073
BEIS,Met Office,2021-09-08,08 SOFTWARE LICENCES,TECHNOLOGY AND CIO,PRESENTATION CARTOGRAPHY LTD,459836,870,-
BEIS,Met Office,2021-09-09,11 SERVICES,TECHNOLOGY AND CIO,SOFTWAREONE,459855,358.89,GB 942 5301 43
BEIS,Met Office,2021-09-13,07 EQUIPMENT,TECHNOLOGY AND CIO,SSE CONTRACTING LTD,459574,219.51,382894546
BEIS,Met Office,2021-09-08,11 SERVICES,TECHNOLOGY AND CIO,SSE CONTRACTING LTD,459675,10393.84,382894546
BEIS,Met Office,2021-09-01,11 SERVICES,TECHNOLOGY AND CIO,THE KNOWLEDGE ACADEMY LIMITED,458572,1500,GB970667487
BEIS,Met Office,2021-09-13,11 SERVICES,TECHNOLOGY AND CIO,UK CONNECT LTD,459971,1600,154468983
BEIS,Met Office,2021-09-03,11 SERVICES,TECHNOLOGY AND CIO,UKCLOUD LTD,459686,1658.4,172647982
BEIS,Met Office,2021-09-03,11 SERVICES,TECHNOLOGY AND CIO,WIREFAST LTD,459681,17.36,749536001
BEIS,Met Office,2021-09-28,11 SERVICES,TECHNOLOGY AND CIO,WIREFAST LTD,460419,324.28,749536001
BEIS,Met Office,2021-09-06,11 SERVICES,TECHNOLOGY AND CIO,WIREFAST LTD,459704,740.05,749536001
BEIS,Met Office,2021-09-06,11 SERVICES,TECHNOLOGY AND CIO,WIREFAST LTD,459705,3050.12,749536001
BEIS,Met Office,2021-09-01,11 SERVICES,TECHNOLOGY AND CIO,WSO2 (UK) LTD,458754,16539.96,977308971
